lending/lending_fUSD_20250122
["ID","MTS","AMOUNT","RATE_DAILY","PERIOD"]
[349975715,1737544254894,-32815.91891422,0.00020898,2]
[349975716,1737544254904,-858.80220808,0.00020898,2]
[349975717,1737544254914,-703.52422434,0.00020899,2]
[349975718,1737544254923,-200.0,0.000209,2]
[349975719,1737544254933,-1400.0,0.000209,7]
[349975720,1737544254943,-528.81262902,0.000209,2]
[349975721,1737544254952,-205.52649876,0.000209,2]
[349975722,1737544254961,-731.35170008,0.000209,2]
[349975723,1737544254971,-200.0,0.00020902,2]
[349975724,1737544254980,-280.53001762,0.00020902,2]
[349975725,1737544254989,-4819.76637988,0.00020904,2]
[349975726,1737544254999,-151.57445179,0.00020904,2]
[349975727,1737544255008,-200.0,0.00020906,2]
[349975728,1737544255017,-876.25703545,0.00020907,2]
[349975729,1737544255026,-703.52422434,0.00020908,2]
[349975730,1737544255035,-4819.76637988,0.00020911,2]
[349975731,1737544255044,-1407.0484487,0.00020912,2]
[349975732,1737544255054,-3192.98276499,0.00020913,2]
[349975733,1737544255063,-981.80122372,0.00020913,2]
[349975734,1737544255073,-689.25050706,0.00020914,2]
[349975735,1737544255084,-4819.76637988,0.00020915,2]
[349975736,1737544255093,-2529.98750614,0.00020915,2]
[349975737,1737544255102,-200.0,0.00020915,2]
[349975738,1737544255112,-420.90530562,0.00020915,2]
[349975739,1737544255121,-26386.92099517,0.00020916,2]
[349975740,1737544255131,-2529.98750614,0.00020916,2]
[349975741,1737544255143,-200.0,0.00020918,2]
[349975742,1737544255164,-703.52422435,0.00020918,2]
[349975743,1737544255173,-552.55080464,0.0002092,2]
[349975744,1737544255183,-471.29838805,0.00020922,2]
[349975745,1737544255192,-32815.91891422,0.00020923,2]
[349975746,1737544255331,-200.0,0.00020924,2]
[349975747,1737544255342,-29292.04219857,0.00020924,2]
[349975748,1737544255351,-1233.90680559,0.00020925,2]
[349975749,1737544255360,-2221.83816593,0.00020926,2]
[349975750,1737544255370,-420.90530562,0.00020926,2]
[349975751,1737544255379,-2221.83816593,0.00020927,2]
[349975752,1737544255389,-19358.97843936,0.00020928,2]
[349975753,1737544255398,-200.0,0.00020928,2]
[349975754,1737544255408,-200.0,0.00020929,2]
[349975755,1737544255417,-200.0,0.0002093,2]
[349975756,1737544255427,-29292.04219857,0.00020931,2]
[349975757,1737544255436,-220.53,0.00020931,2]
[349975758,1737544255446,-4301.95635231,0.00020933,2]
[349975759,1737544255455,-49129.7411368,0.00020934,2]
[349975760,1737544255465,-1407.0484487,0.00020935,2]
[349975761,1737544255474,-4301.95635231,0.00020935,2]
[349975762,1737544255484,-27420.25861418,0.00020936,2]
[349975763,1737544255495,-1498.98782346,0.00020936,2]
[349975764,1737544255505,-51321.28138864,0.00020938,2]
[349975765,1737544255514,-731.83202777,0.00020939,2]
[349975766,1737544255524,-200.0,0.00020939,2]
[349975767,1737544255533,-735.55219059,0.00020939,2]
[349975768,1737544255543,-471.29838805,0.00020941,2]
[349975769,1737544255557,-3726.5941033,0.00020941,2]
[349975770,1737544255566,-689.25050706,0.00020941,2]
[349975771,1737544255576,-1233.90680559,0.00020941,2]
[349975772,1737544255585,-2529.98750614,0.00020942,2]
[349975773,1737544255595,-49129.7411368,0.00020942,2]
[349975774,1737544255604,-981.80122372,0.00020942,2]
[349975775,1737544255613,-1233.90680559,0.00020943,2]
[349975776,1737544255623,-4301.95635231,0.00020944,2]
[349975777,1737544255632,-200.0,0.00020944,2]
[349975778,1737544255642,-26386.92099517,0.00020945,2]
[349975779,1737544255651,-4819.76637988,0.00020946,2]
[349975780,1737544255662,-63978.97328255,0.00020948,2]
[349975781,1737544255671,-731.35170008,0.00020949,2]
[349975782,1737544255680,-858.80220808,0.00020949,2]
[349975783,1737544255689,-1037.10875048,0.00020982,5]
[349975784,1737544255700,-270.70693079,0.0002099,2]
[349975785,1737544255710,-66470.0,0.00021,2]
[349975786,1737544255720,-11396.1224433,0.00021,7]
[349975787,1737544255729,-205.52649876,0.00021011,2]
[349975788,1737544255739,-500.0,0.00021078,2]
[349975789,1737544255748,-2182.9,0.00021078,2]
[349975790,1737544255757,-845.32,0.00021078,2]
[349975791,1737544255767,-1694.78,0.00021078,2]
[349975792,1737544255776,-595.89,0.00021078,2]
[349975793,1737544255786,-1253.31,0.00021078,2]
[349975794,1737544255795,-827.150126,0.00021078,2]
[349975795,1737544255804,-1250.55,0.00021078,2]
[349975796,1737544255814,-948.66,0.00021078,2]
[349975797,1737544255823,-870.05,0.00021078,2]
[349975798,1737544255833,-472.832605,0.00021078,2]
[349975799,1737544255842,-1331.81,0.00021078,2]
[349975800,1737544255851,-951.0,0.00021078,2]
[349975801,1737544255861,-1891.85,0.00021078,2]
[349975802,1737544255870,-944.43,0.00021078,2]
[349975803,1737544255879,-882.71,0.00021078,2]
[349975804,1737544255889,-3034.15,0.00021078,2]
[349975805,1737544255898,-1398.26,0.00021078,2]
[349975806,1737544255907,-707.77,0.00021078,2]
[349975807,1737544255917,-856.43,0.00021078,2]
[349975808,1737544255926,-2179.04,0.00021078,2]
[349975809,1737544255935,-3079.91,0.00021078,2]
[349975810,1737544255945,-500.0,0.00021078,2]
[349975811,1737544255954,-960.99,0.00021078,2]
[349975812,1737544255964,-876.18,0.00021078,2]
[349975813,1737544255973,-3241.6,0.00021078,2]
[349975814,1737544255982,-926.24,0.00021078,2]
[349975815,1737544255992,-1009.16,0.00021078,2]
[349975816,1737544256002,-571.27,0.00021079,2]
[349975817,1737544256012,-500.0,0.00021079,2]
[349975818,1737544256021,-500.0,0.00021079,2]
[349975819,1737544256030,-500.0,0.00021079,2]
[349975820,1737544256040,-500.0,0.00021079,2]
[349975821,1737544256049,-500.0,0.00021079,2]
[349975822,1737544256059,-601.73,0.00021079,2]
[349975823,1737544256068,-500.0,0.00021079,2]
[349975824,1737544256077,-500.0,0.00021079,2]
[349975825,1737544256087,-500.0,0.00021079,2]
[349975826,1737544256096,-716.83,0.00021079,2]
[349975827,1737544256105,-500.0,0.00021079,2]
[349975828,1737544256115,-757.92,0.00021079,2]
[349975829,1737544256124,-500.0,0.00021079,2]
[349975830,1737544256133,-523.71,0.00021079,2]
[349975831,1737544256142,-500.0,0.00021079,2]
[349975832,1737544256152,-786.76,0.00021079,2]
[349975833,1737544256161,-518.21,0.00021079,2]
[349975834,1737544256171,-624.23,0.00021079,2]
[349975835,1737544256180,-500.0,0.00021079,2]
[349975836,1737544256189,-500.0,0.00021079,2]
[349975837,1737544256199,-500.0,0.00021079,2]
[349975838,1737544256208,-500.0,0.00021079,2]
[349975839,1737544256217,-500.0,0.00021079,2]
[349975840,1737544256227,-500.0,0.00021079,2]
[349975841,1737544256236,-500.0,0.00021079,2]
[349975842,1737544256246,-545.73,0.00021079,2]
[349975843,1737544256255,-500.0,0.00021079,2]
[349975844,1737544256265,-500.0,0.00021079,2]
[349975845,1737544256274,-1389.85,0.00021079,2]
[349975846,1737544256284,-1961.32,0.00021079,2]
[349975847,1737544256293,-500.0,0.00021079,2]
[349975848,1737544256303,-1067.75,0.00021079,2]
[349975849,1737544256312,-670.3,0.00021079,2]
[349975850,1737544256321,-1183.57,0.00021079,2]
[349975851,1737544256330,-390.28,0.00021079,2]
[349975852,1737544256340,-500.0,0.00021079,2]
[349975853,1737544256349,-552.88,0.00021079,2]
[349975854,1737544256360,-500.0,0.00021079,2]
[349975855,1737544256371,-3493.48,0.00021079,2]
[349975856,1737544256381,-666.26,0.00021079,2]
[349975857,1737544256391,-891.95,0.00021079,2]
[349975858,1737544256400,-1711.53,0.00021079,2]
[349975859,1737544256410,-500.0,0.00021079,2]
[349975860,1737544256419,-831.2,0.00021079,2]
[349975861,1737544256428,-500.0,0.00021079,2]
[349975862,1737544256439,-500.0,0.00021079,2]
[349975863,1737544256449,-500.0,0.00021079,2]
[349975864,1737544256458,-867.17,0.00021079,2]
[349975865,1737544256467,-1937.38,0.00021079,2]
[349975866,1737544256477,-1747.6,0.00021079,2]
[349975867,1737544256487,-500.0,0.00021079,2]
[349975868,1737544256496,-654.02,0.00021079,2]
[349975869,1737544256505,-1183.36,0.00021079,2]
[349975870,1737544256520,-617.6,0.00021079,2]
[349975871,1737544256536,-1259.57,0.00021079,2]
[349975872,1737544256550,-566.96,0.00021079,2]
[349975873,1737544256565,-500.0,0.00021079,2]
[349975874,1737544256580,-500.0,0.00021079,2]
[349975875,1737544256594,-500.0,0.00021079,2]
[349975876,1737544256612,-1756.24,0.00021079,2]
[349975877,1737544256626,-500.0,0.00021079,2]
[349975878,1737544256638,-1945.8,0.00021079,2]
[349975879,1737544256652,-525.15,0.00021079,2]
[349975880,1737544256667,-688.72,0.00021079,2]
[349975881,1737544256682,-500.0,0.00021079,2]
[349975882,1737544256696,-1464.22,0.00021079,2]
[349975883,1737544256710,-500.0,0.00021079,2]
[349975884,1737544256725,-517.38,0.00021079,2]
[349975885,1737544256740,-500.0,0.0002108,2]
[349975886,1737544256754,-500.0,0.0002108,2]
[349975887,1737544256766,-500.0,0.0002108,2]
[349975888,1737544256782,-500.0,0.0002108,2]
[349975889,1737544256795,-500.0,0.0002108,2]
[349975890,1737544256807,-627.08,0.0002108,2]
[349975891,1737544256819,-500.0,0.0002108,2]
[349975892,1737544256833,-500.0,0.0002108,2]
[349975893,1737544256847,-500.0,0.0002108,2]
[349975894,1737544256858,-738.07,0.0002108,2]
[349975895,1737544256869,-500.0,0.0002108,2]
[349975896,1737544256884,-563.44,0.0002108,2]
[349975897,1737544256898,-547.53,0.0002108,2]
[349975898,1737544256909,-500.0,0.0002108,2]
[349975899,1737544256922,-500.0,0.0002108,2]
[349975900,1737544256935,-491.11048082,0.0002108,2]
[349975901,1737544256947,-500.0,0.0002108,2]
[349975902,1737544256959,-1064.14,0.0002108,2]
[349975903,1737544256971,-1346.49,0.0002108,2]
[349975904,1737544256983,-1446.81,0.0002108,2]
[349975905,1737544256995,-500.0,0.0002108,2]
[349975906,1737544257007,-1423.33,0.0002108,2]
[349975907,1737544257019,-673.17,0.0002108,2]
[349975908,1737544257032,-1277.28,0.0002108,2]
[349975909,1737544257044,-3493.01,0.0002108,2]
[349975910,1737544257056,-6194.12,0.0002108,2]
[349975911,1737544257068,-587.51,0.0002108,2]
[349975912,1737544257080,-500.0,0.0002108,2]
[349975913,1737544257091,-529.42,0.0002108,2]
[349975914,1737544257104,-861.1,0.0002108,2]
[349975915,1737544257116,-3060.79,0.0002108,2]
[349975916,1737544257128,-500.0,0.0002108,2]
[349975917,1737544257140,-1104.71,0.0002108,2]
[349975918,1737544257152,-688.4,0.0002108,2]
[349975919,1737544257164,-1692.46,0.0002108,2]
[349975920,1737544257176,-500.0,0.0002108,2]
[349975921,1737544257188,-500.0,0.0002108,2]
[349975922,1737544257200,-500.0,0.0002108,2]
[349975923,1737544257212,-850.91,0.0002108,2]
[349975924,1737544257224,-915.1,0.0002108,2]
[349975925,1737544257236,-500.0,0.0002108,2]
[349975926,1737544257249,-1215.45,0.0002108,2]
[349975927,1737544257261,-1180.35,0.0002108,2]
[349975928,1737544257273,-1251.06,0.0002108,2]
[349975929,1737544257284,-544.82,0.0002108,2]
[349975930,1737544257296,-500.0,0.0002108,2]
[349975931,1737544257309,-1741.37,0.0002108,2]
[349975932,1737544257321,-1000.0,0.0002108,2]
[349975933,1737544257332,-999.0,0.0002108,2]
[349975934,1737544257344,-841.18,0.0002108,2]
[349975935,1737544257356,-631.49,0.0002108,2]
[349975936,1737544257368,-555.75,0.0002108,2]
[349975937,1737544257381,-500.0,0.0002108,2]
[349975938,1737544257394,-500.0,0.0002108,2]
[349975939,1737544257407,-500.0,0.0002108,2]
[349975940,1737544257419,-1820.67,0.0002108,2]
[349975941,1737544257432,-667.15,0.0002108,2]
[349975942,1737544257444,-1458.6,0.0002108,2]
[349975943,1737544257457,-500.0,0.0002108,2]
[349975944,1737544257469,-595.65,0.0002108,2]
[349975945,1737544257480,-500.0,0.0002108,2]
[349975946,1737544257493,-500.0,0.0002108,2]
[349975947,1737544257504,-500.0,0.0002108,2]
[349975948,1737544257517,-500.0,0.0002108,2]
[349975949,1737544257529,-1077.95,0.0002108,2]
[349975950,1737544257541,-500.0,0.00021081,2]
[349975951,1737544257556,-500.0,0.00021081,2]
[349975952,1737544257569,-500.0,0.00021081,2]
[349975953,1737544257581,-500.0,0.00021081,2]
[349975954,1737544257594,-653.14,0.00021081,2]
[349975955,1737544257607,-500.0,0.00021081,2]
[349975956,1737544257620,-500.0,0.00021081,2]
[349975957,1737544257633,-500.0,0.00021081,2]
[349975958,1737544257645,-566.39,0.00021081,2]
[349975959,1737544257656,-500.0,0.00021081,2]
[349975960,1737544257668,-500.0,0.00021081,2]
[349975961,1737544257680,-523.7,0.00021081,2]
[349975962,1737544257692,-500.0,0.00021081,2]
[349975963,1737544257705,-500.0,0.00021081,2]
[349975964,1737544257717,-500.0,0.00021081,2]
[349975965,1737544257730,-500.0,0.00021081,2]
[349975966,1737544257742,-500.0,0.00021081,2]
[349975967,1737544257754,-500.0,0.00021081,2]
[349975968,1737544257767,-502.03,0.00021081,2]
[349975969,1737544257780,-500.0,0.00021081,2]
[349975970,1737544257792,-607.34,0.00021081,2]
[349975971,1737544257804,-500.0,0.00021081,2]
[349975972,1737544257816,-705.95,0.00021081,2]
[349975973,1737544257828,-627.97,0.00021081,2]
[349975974,1737544257842,-500.0,0.00021081,2]
[349975975,1737544257856,-500.0,0.00021081,2]
[349975976,1737544257868,-707.28,0.00021081,2]
[349975977,1737544257882,-525.43,0.00021081,2]
[349975978,1737544257894,-513.36,0.00021081,2]
[349975979,1737544257904,-788.76,0.00021081,2]
[349975980,1737544257913,-605.84274801,0.00021081,2]
[349975981,1737544257922,-678.5,0.00021081,2]
[349975982,1737544257931,-500.0,0.00021081,2]
[349975983,1737544257941,-500.0,0.00021081,2]
[349975984,1737544257952,-500.0,0.00021081,2]
[349975985,1737544257961,-500.0,0.00021081,2]
[349975986,1737544257971,-607.77,0.00021081,2]
[349975987,1737544257979,-500.0,0.00021081,2]
[349975988,1737544258208,-731.64,0.00021081,2]
[349975989,1737544258222,-500.0,0.00021081,2]
[349975990,1737544258231,-500.0,0.00021081,2]
[349975991,1737544258242,-500.0,0.00021081,2]
[349975992,1737544258252,-755.79,0.00021081,2]
[349975993,1737544258263,-927.77,0.00021081,2]
[349975994,1737544258274,-500.0,0.00021081,2]
[349975995,1737544258283,-500.0,0.00021081,2]
[349975996,1737544258292,-500.0,0.00021081,2]
[349975997,1737544258302,-500.0,0.00021081,2]
[349975998,1737544258311,-961.27,0.00021081,2]
[349975999,1737544258323,-735.58,0.00021081,2]
[349976000,1737544258341,-795.2,0.00021081,2]
[349976001,1737544258351,-819.06,0.00021081,2]
[349976002,1737544258360,-500.0,0.00021081,2]
[349976003,1737544258371,-500.0,0.00021081,2]
[349976004,1737544258381,-151.57445179,0.00021103,2]
[349976005,1737544258391,-205.52649876,0.00021122,2]
[349976006,1737544258402,-868.13926994,0.00021136,2]
[349976007,1737544258414,-259387.78694589,0.00021154,2]
[349976008,1737544258428,-500.0,0.00021154,2]
[349976009,1737544258440,-500.0,0.00021173,2]
[349976010,1737544258453,-621.35795537,0.00021173,2]
[349976011,1737544258463,-500.0,0.00021173,2]
[349976012,1737544258473,-529.48360434,0.00021173,2]
[349976013,1737544258483,-596.1,0.00021178,2]
[349976014,1737544258492,-150.0,0.00021189,2]
[349976015,1737544258501,-1900.0,0.000212,7]
[349976016,1737544258511,-205.52649876,0.00021233,2]
[349976017,1737544258522,-160.607,0.0002126,2]
[349976018,1737544258533,-150.0,0.000213,2]
[349976019,1737544258542,-2300.0,0.000213,7]
[349976020,1737544258554,-151.57445179,0.00021303,2]
[349976021,1737544258564,-3000.0,0.0002133,2]
[349976022,1737544258574,-2085.0,0.0002134,2]
[349976023,1737544258583,-205.52649876,0.00021344,2]
[349976024,1737544258592,-500.0,0.00021352,2]
[349976025,1737544258602,-2182.9,0.00021352,2]
[349976026,1737544258611,-845.32,0.00021352,2]
[349976027,1737544258621,-1694.78,0.00021352,2]
[349976028,1737544258633,-595.89,0.00021352,2]
[349976029,1737544258642,-1253.31,0.00021352,2]
[349976030,1737544258651,-827.150126,0.00021352,2]
[349976031,1737544258661,-1250.55,0.00021352,2]
[349976032,1737544258670,-948.66,0.00021352,2]
[349976033,1737544258681,-870.05,0.00021352,2]
[349976034,1737544258690,-472.832605,0.00021352,2]
[349976035,1737544258699,-1331.81,0.00021352,2]
[349976036,1737544258708,-951.0,0.00021352,2]
[349976037,1737544258718,-1891.85,0.00021352,2]
[349976038,1737544258727,-944.43,0.00021352,2]
[349976039,1737544258736,-882.71,0.00021352,2]
[349976040,1737544258744,-3034.15,0.00021352,2]
[349976041,1737544258754,-1398.26,0.00021352,2]
[349976042,1737544258763,-707.77,0.00021352,2]
[349976043,1737544258772,-184.640318,0.00021352,2]
[349976044,1737544258781,-856.43,0.00021352,2]
[349976045,1737544258791,-2179.04,0.00021352,2]
[349976046,1737544258800,-3079.91,0.00021352,2]
[349976047,1737544258809,-500.0,0.00021352,2]
[349976048,1737544258819,-960.99,0.00021352,2]
[349976049,1737544258828,-876.18,0.00021352,2]
[349976050,1737544258837,-3241.6,0.00021352,2]
[349976051,1737544258846,-926.24,0.00021352,2]
[349976052,1737544258856,-1009.16,0.00021352,2]
[349976053,1737544258865,-571.27,0.00021353,2]
[349976054,1737544258875,-500.0,0.00021353,2]
[349976055,1737544258884,-500.0,0.00021353,2]
[349976056,1737544258893,-500.0,0.00021353,2]
[349976057,1737544258903,-500.0,0.00021353,2]
[349976058,1737544258912,-601.73,0.00021353,2]
[349976059,1737544258922,-500.0,0.00021353,2]
[349976060,1737544258931,-500.0,0.00021353,2]
[349976061,1737544258941,-500.0,0.00021353,2]
[349976062,1737544258951,-716.83,0.00021353,2]
[349976063,1737544258960,-500.0,0.00021353,2]
[349976064,1737544258969,-757.92,0.00021353,2]
[349976065,1737544258979,-500.0,0.00021353,2]
[349976066,1737544258988,-523.71,0.00021353,2]
[349976067,1737544258999,-500.0,0.00021353,2]
[349976068,1737544259009,-786.76,0.00021353,2]
[349976069,1737544259019,-518.21,0.00021353,2]
[349976070,1737544259030,-624.23,0.00021353,2]
[349976071,1737544259040,-500.0,0.00021353,2]
[349976072,1737544259051,-500.0,0.00021353,2]
[349976073,1737544259062,-500.0,0.00021353,2]
[349976074,1737544259074,-500.0,0.00021353,2]
[349976075,1737544259085,-500.0,0.00021353,2]
[349976076,1737544259095,-500.0,0.00021353,2]
[349976077,1737544259110,-500.0,0.00021353,2]
[349976078,1737544259119,-545.73,0.00021353,2]
[349976079,1737544259129,-500.0,0.00021353,2]
[349976080,1737544259139,-500.0,0.00021353,2]
[349976081,1737544259149,-1389.85,0.00021353,2]
[349976082,1737544259160,-1961.32,0.00021353,2]
[349976083,1737544259170,-500.0,0.00021353,2]
[349976084,1737544259181,-1067.75,0.00021353,2]
[349976085,1737544259190,-670.3,0.00021353,2]
[349976086,1737544259199,-1183.57,0.00021353,2]
[349976087,1737544259208,-500.0,0.00021353,2]
[349976088,1737544259218,-552.88,0.00021353,2]
[349976089,1737544259228,-500.0,0.00021353,2]
[349976090,1737544259237,-3493.48,0.00021353,2]
[349976091,1737544259247,-666.26,0.00021353,2]
[349976092,1737544259256,-891.95,0.00021353,2]
[349976093,1737544259266,-1711.53,0.00021353,2]
[349976094,1737544259275,-500.0,0.00021353,2]
[349976095,1737544259284,-831.2,0.00021353,2]
[349976096,1737544259293,-500.0,0.00021353,2]
[349976097,1737544259303,-500.0,0.00021353,2]
[349976098,1737544259312,-500.0,0.00021353,2]
[349976099,1737544259321,-867.17,0.00021353,2]
[349976100,1737544259330,-1937.38,0.00021353,2]
[349976101,1737544259339,-1747.6,0.00021353,2]
[349976102,1737544259348,-500.0,0.00021353,2]
[349976103,1737544259358,-654.02,0.00021353,2]
[349976104,1737544259367,-1183.36,0.00021353,2]
[349976105,1737544259376,-617.6,0.00021353,2]
[349976106,1737544259386,-1259.57,0.00021353,2]
[349976107,1737544259395,-566.96,0.00021353,2]
[349976108,1737544259404,-500.0,0.00021353,2]
[349976109,1737544259413,-500.0,0.00021353,2]
[349976110,1737544259422,-500.0,0.00021353,2]
[349976111,1737544259431,-1756.24,0.00021353,2]
[349976112,1737544259440,-392.95577558,0.00021353,2]
[349976113,1737544259449,-1945.8,0.00021353,2]
[349976114,1737544259458,-525.15,0.00021353,2]
[349976115,1737544259467,-688.72,0.00021353,2]
[349976116,1737544259477,-500.0,0.00021353,2]
[349976117,1737544259487,-1464.22,0.00021353,2]
[349976118,1737544259497,-500.0,0.00021353,2]
[349976119,1737544259508,-500.0,0.00021354,2]
[349976120,1737544259518,-183.43877253,0.00021354,2]
[349976121,1737544259528,-500.0,0.00021354,2]
[349976122,1737544259538,-500.0,0.00021354,2]
[349976123,1737544259550,-627.08,0.00021354,2]
[349976124,1737544259563,-500.0,0.00021354,2]
[349976125,1737544259573,-500.0,0.00021354,2]
[349976126,1737544259582,-738.07,0.00021354,2]
[349976127,1737544259591,-500.0,0.00021354,2]
[349976128,1737544259601,-563.44,0.00021354,2]
[349976129,1737544259610,-547.53,0.00021354,2]
[349976130,1737544259619,-500.0,0.00021354,2]
[349976131,1737544259630,-500.0,0.00021354,2]
[349976132,1737544259639,-500.0,0.00021354,2]
[349976133,1737544259649,-1064.14,0.00021354,2]
[349976134,1737544259660,-1346.49,0.00021354,2]
[349976135,1737544259669,-1446.81,0.00021354,2]
[349976136,1737544259679,-500.0,0.00021354,2]
[349976137,1737544259688,-1423.33,0.00021354,2]
[349976138,1737544259698,-673.17,0.00021354,2]
[349976139,1737544259707,-1277.28,0.00021354,2]
[349976140,1737544259718,-3493.01,0.00021354,2]
[349976141,1737544259728,-6194.12,0.00021354,2]
[349976142,1737544259737,-587.51,0.00021354,2]
[349976143,1737544259747,-500.0,0.00021354,2]
[349976144,1737544259756,-529.42,0.00021354,2]
[349976145,1737544259766,-861.1,0.00021354,2]
[349976146,1737544259775,-3060.79,0.00021354,2]
[349976147,1737544259785,-500.0,0.00021354,2]
[349976148,1737544259794,-1104.71,0.00021354,2]
[349976149,1737544259803,-688.4,0.00021354,2]
[349976150,1737544259813,-1692.46,0.00021354,2]
[349976151,1737544259822,-500.0,0.00021354,2]
[349976152,1737544259831,-500.0,0.00021354,2]
[349976153,1737544259840,-850.91,0.00021354,2]
[349976154,1737544259849,-915.1,0.00021354,2]
[349976155,1737544259858,-500.0,0.00021354,2]
[349976156,1737544259867,-1215.45,0.00021354,2]
[349976157,1737544259876,-1180.35,0.00021354,2]
[349976158,1737544259885,-1251.06,0.00021354,2]
[349976159,1737544259894,-544.82,0.00021354,2]
[349976160,1737544259904,-500.0,0.00021354,2]
[349976161,1737544259913,-1741.37,0.00021354,2]
[349976162,1737544259922,-1000.0,0.00021354,2]
[349976163,1737544259931,-841.18,0.00021354,2]
[349976164,1737544259940,-631.49,0.00021354,2]
[349976165,1737544259949,-555.75,0.00021354,2]
[349976166,1737544259958,-500.0,0.00021354,2]
[349976167,1737544259968,-500.0,0.00021354,2]
[349976168,1737544259977,-500.0,0.00021354,2]
[349976169,1737544259986,-1820.67,0.00021354,2]
[349976170,1737544259995,-667.15,0.00021354,2]
[349976171,1737544260004,-1458.6,0.00021354,2]
[349976172,1737544260013,-500.0,0.00021354,2]
[349976173,1737544260022,-595.65,0.00021354,2]
[349976174,1737544260032,-500.0,0.00021354,2]
[349976175,1737544260042,-500.0,0.00021354,2]
[349976176,1737544260052,-500.0,0.00021354,2]
[349976177,1737544260062,-500.0,0.00021354,2]
[349976178,1737544260072,-1077.95,0.00021354,2]
[349976179,1737544260081,-500.0,0.00021355,2]
[349976180,1737544260091,-500.0,0.00021355,2]
[349976181,1737544260101,-500.0,0.00021355,2]
[349976182,1737544260110,-500.0,0.00021355,2]
[349976183,1737544260119,-653.14,0.00021355,2]
[349976184,1737544260129,-403.14,0.00021355,2]
[349976185,1737544260139,-204.58903505,0.00021355,2]
[349976186,1737544260149,-412.60025793,0.00021355,2]
[349976187,1737544260158,-566.39,0.00021355,2]
[349976188,1737544260167,-500.0,0.00021355,2]
[349976189,1737544260177,-500.0,0.00021355,2]
[349976190,1737544260186,-523.7,0.00021355,2]
[349976191,1737544260196,-500.0,0.00021355,2]
[349976192,1737544260206,-500.0,0.00021355,2]
[349976193,1737544260216,-500.0,0.00021355,2]
[349976194,1737544260225,-500.0,0.00021355,2]
[349976195,1737544260235,-500.0,0.00021355,2]
[349976196,1737544260244,-500.0,0.00021355,2]
[349976197,1737544260253,-502.03,0.00021355,2]
[349976198,1737544260263,-500.0,0.00021355,2]
[349976199,1737544260272,-607.34,0.00021355,2]
[349976200,1737544260281,-500.0,0.00021355,2]
[349976201,1737544260291,-705.95,0.00021355,2]
[349976202,1737544260300,-627.97,0.00021355,2]
[349976203,1737544260309,-500.0,0.00021355,2]
[349976204,1737544260319,-500.0,0.00021355,2]
[349976205,1737544260328,-707.28,0.00021355,2]
[349976206,1737544260337,-525.43,0.00021355,2]
[349976207,1737544260346,-513.36,0.00021355,2]
[349976208,1737544260356,-788.76,0.00021355,2]
[349976209,1737544260365,-678.5,0.00021355,2]
[349976210,1737544260374,-500.0,0.00021355,2]
[349976211,1737544260383,-500.0,0.00021355,2]
[349976212,1737544260392,-500.0,0.00021355,2]
[349976213,1737544260402,-500.0,0.00021355,2]
[349976214,1737544260411,-607.77,0.00021355,2]